fUST/lending_fUST_20240730
["ID","MTS","AMOUNT","RATE_DAILY","PERIOD"]
[333669279,1722330650842,-500.0,0.00013698,2]
[333669280,1722330650852,-500.0,0.00013698,2]
[333669281,1722330650863,-500.0,0.00013698,2]
[333669282,1722330650873,-500.0,0.00013698,2]
[333669283,1722330650882,-502.38779338,0.00013698,2]
[333669284,1722330650891,-500.0,0.00013698,2]
[333669285,1722330650901,-542.48749282,0.00013698,2]
[333669286,1722330650910,-500.0,0.00013698,2]
[333669287,1722330650919,-501.66437932,0.00013698,2]
[333669288,1722330650929,-500.0,0.00013698,2]
[333669289,1722330650938,-500.0,0.00013698,2]
[333669290,1722330650948,-504.73581637,0.00013698,2]
[333669291,1722330650958,-500.0,0.00013698,2]
[333669292,1722330650967,-500.0,0.00013698,2]
[333669293,1722330650976,-500.0,0.00013698,2]
[333669294,1722330650985,-506.39755018,0.00013698,2]
[333669295,1722330650995,-500.0,0.00013698,2]
[333669296,1722330651004,-500.0,0.00013698,2]
[333669297,1722330651013,-500.0,0.00013698,2]
[333669298,1722330651024,-500.0,0.00013698,2]
[333669299,1722330651033,-502.382924,0.00013698,2]
[333669300,1722330651042,-500.0,0.00013698,2]
[333669301,1722330651052,-500.0,0.00013698,2]
[333669302,1722330651061,-500.0,0.00013698,2]
[333669303,1722330651070,-500.0,0.00013698,2]
[333669304,1722330651079,-500.0,0.00013698,2]
[333669305,1722330651090,-500.0,0.00013698,2]
[333669306,1722330651099,-500.0,0.00013698,2]
[333669307,1722330651108,-500.0,0.00013698,2]
[333669308,1722330651118,-500.0,0.00013698,2]
[333669309,1722330651127,-500.0,0.00013698,2]
[333669310,1722330651136,-500.0,0.00013698,2]
[333669311,1722330651146,-500.0,0.00013698,2]
[333669312,1722330651155,-504.24494925,0.00013698,2]
[333669313,1722330651165,-500.0,0.00013698,2]
[333669314,1722330651174,-500.0,0.00013698,2]
[333669315,1722330651184,-500.0,0.00013698,2]
[333669316,1722330651193,-595.72795249,0.00013698,2]
[333669317,1722330651203,-500.0,0.00013698,2]
[333669318,1722330651213,-500.0,0.00013698,2]
[333669319,1722330651223,-555.46099489,0.00013698,2]
[333669320,1722330651232,-500.0,0.00013698,2]
[333669321,1722330651243,-500.0,0.00013698,2]
[333669322,1722330651253,-500.0,0.00013698,2]
[333669323,1722330651263,-500.0,0.00013698,2]
[333669324,1722330651273,-500.0,0.00013698,2]
[333669325,1722330651391,-500.0,0.00013698,2]
[333669326,1722330651401,-500.0,0.00013698,2]
[333669327,1722330651410,-503.20105922,0.00013698,2]
[333669328,1722330651420,-500.0,0.00013698,2]
[333669329,1722330651431,-179.38373503,0.00013698,2]
[333669330,1722330651441,-500.0,0.00013698,2]
[333669331,1722330651450,-506.65289107,0.00013698,2]
[333669332,1722330651459,-503.05304159,0.00013698,2]
[333669333,1722330651469,-500.0,0.00013698,2]
[333669334,1722330651479,-500.0,0.00013698,2]
[333669335,1722330651488,-500.0,0.00013698,2]
[333669336,1722330651497,-500.0,0.00013698,2]
[333669337,1722330651506,-500.0,0.00013698,2]
[333669338,1722330651516,-538.1491236,0.00013698,2]
[333669339,1722330651526,-500.0,0.00013698,2]
[333669340,1722330651535,-500.0,0.00013698,2]
[333669341,1722330651544,-505.52642577,0.00013698,2]
[333669342,1722330651553,-500.0,0.00013698,2]
[333669343,1722330651562,-500.0,0.00013698,2]
[333669344,1722330651571,-500.0,0.00013698,2]
[333669345,1722330651581,-500.0,0.00013698,2]
[333669346,1722330651593,-500.0,0.00013698,2]
[333669347,1722330651604,-500.0,0.00013698,2]
[333669348,1722330651614,-500.0,0.00013698,2]
[333669349,1722330651626,-500.0,0.00013698,2]
[333669350,1722330651637,-500.0,0.00013698,2]
[333669351,1722330651647,-500.0,0.00013698,2]
[333669352,1722330651657,-500.0,0.00013698,2]
[333669353,1722330651666,-500.0,0.00013698,2]
[333669354,1722330651675,-500.0,0.00013698,2]
[333669355,1722330651684,-500.0,0.00013698,2]
[333669356,1722330651693,-505.05,0.00013698,2]
[333669357,1722330651703,-500.0,0.00013698,2]
[333669358,1722330651712,-500.0,0.00013698,2]
[333669359,1722330651722,-500.0,0.00013698,2]
[333669360,1722330651731,-500.0,0.00013698,2]
[333669361,1722330651740,-500.0,0.00013698,2]
[333669362,1722330651751,-479.82323604,0.00013698,2]
[333669363,1722330651761,-309.90414721,0.00013698,2]
[333669364,1722330651770,-519.25959459,0.00013698,2]
[333669365,1722330651779,-500.0,0.00013698,2]
[333669366,1722330651788,-596.99793014,0.00013698,2]
[333669367,1722330651797,-500.0,0.00013698,2]
[333669368,1722330651806,-500.0,0.00013698,2]
[333669369,1722330651816,-500.0,0.00013698,2]
[333669370,1722330651825,-500.0,0.00013698,2]
[333669371,1722330651838,-500.0,0.00013698,2]
[333669372,1722330651847,-527.40395362,0.00013698,2]
[333669373,1722330651857,-500.0,0.00013698,2]
[333669374,1722330651866,-500.0,0.00013698,2]
[333669375,1722330651875,-500.0,0.00013698,2]
[333669376,1722330651886,-443.82543091,0.00013698,2]
[333669377,1722330651896,-500.0,0.00013698,2]
[333669378,1722330651907,-318.30028544,0.00013698,2]
[333669395,1722331810690,2695.12884647,0.000269,120]
[333669450,1722331831835,-459.45606609,0.00012119,2]
[333669451,1722331831846,-186.6886198,0.00012266,2]
[333669453,1722331831857,-200.0,0.00012986,2]
[333669455,1722331831866,-252.87305992,0.00013144,2]
[333669458,1722331831878,-367.16859967,0.00013144,2]
[333669460,1722331831888,-367.69126021,0.00013461,2]
[333669462,1722331831898,-717.88266084,0.0001349,2]
[333669464,1722331831910,-718.93180857,0.0001349,2]
[333669466,1722331831920,-251.79526793,0.0001349,2]
[333669468,1722331831931,-200.043195,0.00013506,2]
[333669470,1722331831940,-182.862774,0.00013506,2]
[333669472,1722331831950,-164.84868387,0.00013539,2]
[333669474,1722331831963,-86.94658406,0.00013539,2]
[333669476,1722331831973,-642.44185967,0.0001354,2]
[333669479,1722331831984,-2407.12880654,0.0001354,2]
[333669708,1722331837967,-1078.70215988,0.0001354,2]
[333669709,1722331837977,-5764.66,0.00013586,2]
[333669710,1722331837987,-2035.01347081,0.00013587,2]
[333669711,1722331837996,-251.79526793,0.00013587,2]
[333669712,1722331838006,-42396.11097183,0.00013588,2]
[333669713,1722331838015,-2035.01347077,0.0001359,2]
[333669714,1722331838024,-2035.01347077,0.00013593,2]
[333669715,1722331838033,-2035.01347077,0.00013595,2]
[333669716,1722331838043,-2035.01347077,0.00013598,2]
[333669717,1722331838052,-37030.4584991,0.00013598,2]
[333669718,1722331838062,-1580.46268797,0.00013598,2]
[333669719,1722331838074,-327.992538,0.000136,4]
[333669720,1722331838084,-21872.37010805,0.000136,2]
[333669721,1722331838093,-589.0583945,0.000136,2]
[333669722,1722331838105,-8498.64179801,0.00013655,2]
[333669723,1722331838115,-200.043195,0.00013675,2]
[333669725,1722331838125,-182.862774,0.00013675,2]
[333669727,1722331838134,-5764.66,0.00013686,2]
[333669728,1722331838144,-5764.66,0.00013686,2]
[333669729,1722331838153,-51172.8571918,0.00013687,2]
[333669730,1722331838163,-5764.66,0.00013687,2]
[333669731,1722331838172,-5764.66,0.00013687,2]
[333669732,1722331838182,-5764.66,0.00013687,2]
[333669733,1722331838191,-5764.66,0.00013687,2]
[333669734,1722331838200,-5764.66,0.00013687,2]
[333669735,1722331838210,-5764.66,0.00013687,2]
[333669736,1722331838219,-833.14759052,0.00013688,2]
[333669737,1722331838229,-121105.75226499,0.00013688,2]
[333669743,1722331840209,-7694.68890235,0.00013688,2]
[333669744,1722331840232,-3182.58600186,0.00013688,2]
[333669745,1722331840249,-1471.12326077,0.00013688,2]
[333669746,1722331840263,-80776.90186585,0.00013688,2]
[333669747,1722331840276,-657.14970041,0.00013688,2]
[333669758,1722331842876,-1746.5,0.00013688,2]
[333669759,1722331842888,-5295.36,0.00013688,2]
[333669760,1722331842900,-791.2784889,0.00013688,2]
[333669786,1722332020960,-1000.0,0.00014,14]
[333669787,1722332032815,-1000.0,0.00015,15]
[333669788,1722332043781,-3000.0,0.00013698,5]
[333669854,1722333038164,-459.45606609,0.00012119,2]
[333669855,1722333038175,-188.445714,0.00012613,2]
[333669856,1722333038187,-149.27099749,0.00012832,2]
[333669916,1722333043130,-39.17471651,0.00012832,2]
[333669917,1722333043142,-190.0,0.00012986,2]
[333669918,1722333043154,-1000.0,0.00013,13]
[333669919,1722333043165,-188.445714,0.00013051,2]
[333669920,1722333043174,-188.445714,0.0001327,2]
[333669921,1722333043183,-367.69126021,0.00013311,2]
[333669922,1722333043193,-1422.4164192,0.00013598,2]
[333669923,1722333043203,-340.6594123,0.000136,2]
[333669924,1722333043212,-2084.0519731,0.0001366,2]
[333669925,1722333043224,-300.0,0.00013673,2]
[333669926,1722333043236,-206.8555981,0.00013674,2]
[333669927,1722333043246,-206.8555981,0.00013674,2]
[333669928,1722333043257,-206.8555981,0.00013674,2]
[333669929,1722333043267,-206.8555981,0.00013674,2]
[333669930,1722333043277,-1651.33,0.00013687,2]
[333669931,1722333043288,-440.5425979,0.00013687,2]
[333669933,1722333043359,-451.36788527,0.00013687,2]
[333669934,1722333043375,-759.41951683,0.00013687,2]
[333669935,1722333043385,-1651.33,0.00013687,2]
[333669936,1722333043394,-1651.33,0.00013687,2]
[333669937,1722333043404,-1651.33,0.00013687,2]
[333669938,1722333043414,-1651.33,0.00013687,2]
[333669939,1722333043427,-1651.33,0.00013687,2]
[333669940,1722333043439,-1014.24828364,0.00013688,2]
[333669962,1722333561797,287.65185187,0.0001,2]
[333669963,1722333599399,2571.32199503,0.0001,2]
[333669964,1722333610069,229.20201538,0.0001,2]
[333669966,1722333661802,287.65185187,0.0001,2]
[333669967,1722333774803,287.65185187,0.0001,2]
[333669968,1722333804809,287.65185187,0.0001,2]
[333669970,1722333911808,287.65185187,0.0001,2]
[333669971,1722334004809,287.65185187,0.0001,2]
[333669972,1722334100816,287.65185187,0.0001,2]
[333669977,1722334228823,254.2525016,0.0001,2]
[333670198,1722334239730,-194.430562,0.00012986,2]
[333670200,1722334239740,-469.39481758,0.00013,13]
[333670202,1722334239771,-530.60518242,0.00013,13]
[333670203,1722334239781,-620.00208298,0.00013111,2]
[333670204,1722334239793,-367.69126021,0.00013308,2]
[333670205,1722334239803,-5308.80312147,0.00013376,2]
[333670206,1722334239813,-200.043199,0.00013506,2]
[333670207,1722334239825,-182.862776,0.00013506,2]
[333670208,1722334239835,-2715.82217135,0.00013587,2]
[333670209,1722334239845,-2715.82217134,0.0001359,2]
[333670210,1722334239854,-2715.82217134,0.00013593,2]
[333670211,1722334239864,-2715.82217134,0.00013595,2]
[333670212,1722334239875,-1280.17477728,0.00013598,2]
[333670213,1722334239885,-2715.82217134,0.00013598,2]
[333670214,1722334239895,-7514.71071039,0.00013676,5]
[333670215,1722334239905,-6597.48795288,0.00013677,2]
[333670216,1722334239915,-2830.07908066,0.00013678,2]
[333670246,1722334240537,-3767.40887222,0.00013678,2]
[333670248,1722334240547,-32987.4397644,0.00013678,2]
[333670250,1722334240558,-5112.22,0.00013679,2]
[333670252,1722334240568,-17565.0,0.0001368,2]
[333670254,1722334240579,-5112.22,0.00013686,2]
[333670256,1722334240589,-13194.9759058,0.00013687,2]
[333670258,1722334240599,-3819.82227557,0.00013687,2]
[333670358,1722334243374,-1292.39772443,0.00013687,2]
[333670359,1722334243384,-372.97727557,0.00013687,2]
[333670458,1722335432579,-194.250216,0.00012986,2]
[333670460,1722335432589,-1000.0,0.00013,13]
[333670462,1722335432599,-15009.8617745,0.00013,2]
[333670464,1722335432609,-367.69126021,0.00013331,2]
[333670466,1722335432619,-600.0,0.00013413,2]
[333670468,1722335432629,-1409.0,0.00013561,2]
[333670470,1722335432641,-150.0,0.00013561,2]
[333670472,1722335432651,-1920.49672898,0.00013575,2]
[333670474,1722335432661,-1152.15729957,0.00013598,2]
[333670476,1722335432671,-7435.35632746,0.000136,2]
[333670764,1722335439923,-642.326,0.00013561,2]
[333670765,1722335439935,-901.45115133,0.000136,2]
[333670773,1722335440895,-13535.56262926,0.000136,2]
[333670774,1722335440905,-8498.64179801,0.00013655,2]
[333670775,1722335440915,-59524.88239072,0.00013675,2]
[333670776,1722335440928,-391.02230178,0.00013675,2]
[333670777,1722335440939,-3757.3553552,0.00013676,5]
[333670778,1722335440949,-6813.78,0.00013676,2]
[333670779,1722335440960,-5593.57965099,0.00013676,2]
[333670832,1722335446706,-1220.20034901,0.00013676,2]
[333670833,1722335446716,-3005.18124933,0.00013676,2]
[333670834,1722335446843,-3808.59875067,0.00013676,2]
[333670835,1722335446854,-6813.78,0.00013676,2]
[333670836,1722335447089,-419.902854,0.00013676,2]
[333670837,1722335447099,-419.902854,0.00013676,2]
[333670838,1722335447109,-151.0,0.00013676,2]
[333670839,1722335447120,-151.0,0.00013676,2]
[333670840,1722335447134,-151.0,0.00013676,2]
[333670841,1722335447145,-334.202041,0.00013676,2]
[333670842,1722335447156,-258.502402,0.00013676,2]
[333670843,1722335447167,-600.359707,0.00013676,2]
[333670844,1722335447177,-334.202041,0.00013676,2]
[333670845,1722335447187,-600.359707,0.00013676,2]
[333670846,1722335447197,-151.0,0.00013676,2]
[333670847,1722335447207,-151.0,0.00013676,2]
[333670848,1722335447217,-151.710568,0.00013676,2]
[333670849,1722335447227,-151.0,0.00013676,2]
[333670850,1722335447237,-151.0,0.00013676,2]
[333670851,1722335447247,-59915.9046925,0.00013676,2]
[333670852,1722335447257,-500.4197269,0.00013677,2]
[333670853,1722335447266,-151.0,0.00013677,2]
[333670854,1722335447278,-324.963365,0.00013677,2]
[333670855,1722335447288,-324.963365,0.00013677,2]
[333670856,1722335447299,-6813.78,0.00013677,2]
[333670857,1722335447310,-6813.78,0.00013677,2]
[333670858,1722335447321,-419.902854,0.00013677,2]
[333670859,1722335447331,-419.902854,0.00013677,2]
[333670860,1722335447342,-151.0,0.00013677,2]
[333670861,1722335447353,-151.0,0.00013677,2]
[333670862,1722335447362,-151.0,0.00013677,2]
[333670863,1722335447372,-334.202041,0.00013677,2]
[333670864,1722335447382,-600.359707,0.00013677,2]
[333670865,1722335447392,-334.202041,0.00013677,2]
[333670866,1722335447402,-600.359707,0.00013677,2]
[333670867,1722335447412,-151.0,0.00013677,2]
[333670868,1722335447422,-151.0,0.00013677,2]
[333670869,1722335447433,-151.0,0.00013677,2]
[333670870,1722335447442,-239663.61877,0.00013677,2]
[333670871,1722335447451,-17565.0,0.00013685,2]
[333670872,1722335447462,-155.98222,0.00013685,2]
[333670873,1722335447473,-151.0,0.00013685,2]
[333670874,1722335447483,-300.883116,0.00013685,2]
[333670875,1722335447493,-300.883116,0.00013685,2]
[333670876,1722335447502,-302.484213,0.00013685,2]
[333670877,1722335447512,-302.484213,0.00013685,2]
[333670878,1722335447521,-151.0,0.00013685,2]
[333670879,1722335447532,-182.850076,0.00013685,2]
[333670880,1722335447542,-151.0,0.00013685,2]
[333670881,1722335447552,-182.850076,0.00013685,2]
[333670882,1722335447561,-415.896844,0.00013685,2]
[333670883,1722335447570,-415.896844,0.00013685,2]
[333670884,1722335447581,-629.27289,0.00013685,2]
[333670885,1722335447590,-629.27289,0.00013685,2]
[333670886,1722335447600,-345.800562,0.00013685,2]
[333670887,1722335447609,-345.800562,0.00013685,2]
[333670888,1722335447619,-151.26329,0.00013685,2]
[333670889,1722335447629,-324.963365,0.00013685,2]
[333670890,1722335447639,-324.963365,0.00013685,2]
[333670891,1722335447648,-6813.78,0.00013685,2]
[333670892,1722335447658,-419.902854,0.00013685,2]
[333670893,1722335447670,-419.902854,0.00013685,2]
[333670894,1722335447679,-151.0,0.00013685,2]
[333670895,1722335447689,-151.0,0.00013685,2]
[333670896,1722335447699,-151.0,0.00013685,2]
[333670897,1722335447708,-334.202041,0.00013685,2]
[333670898,1722335447717,-600.359707,0.00013685,2]
[333670899,1722335447727,-334.202041,0.00013685,2]
[333670900,1722335447738,-600.359707,0.00013685,2]
[333670901,1722335447749,-151.0,0.00013685,2]
[333670902,1722335447758,-151.0,0.00013685,2]
[333670903,1722335447768,-151.0,0.00013685,2]
[333670904,1722335447778,-14215.97642509,0.00013686,5]
[333670905,1722335447789,-191.361717,0.00013686,2]
[333670906,1722335447798,-151.0,0.00013686,2]
[333670907,1722335447809,-151.0,0.00013686,2]
[333670908,1722335447819,-151.0,0.00013686,2]
[333670909,1722335447829,-151.0,0.00013686,2]
[333670910,1722335447839,-675.277986,0.00013686,2]
[333670911,1722335447852,-675.277986,0.00013686,2]
[333670912,1722335447862,-151.0,0.00013686,2]
[333670913,1722335447872,-151.0,0.00013686,2]
[333670914,1722335447883,-151.0,0.00013686,2]
[333670915,1722335447896,-151.0,0.00013686,2]
[333670916,1722335447905,-300.883116,0.00013686,2]
[333670917,1722335447915,-300.883116,0.00013686,2]
[333670918,1722335447925,-302.484213,0.00013686,2]
[333670919,1722335447937,-302.484213,0.00013686,2]
[333670920,1722335447947,-151.0,0.00013686,2]
[333670921,1722335447957,-182.850076,0.00013686,2]
[333670922,1722335447968,-151.0,0.00013686,2]
[333670923,1722335447977,-182.850076,0.00013686,2]
[333670924,1722335447988,-415.896844,0.00013686,2]
[333670925,1722335447997,-415.896844,0.00013686,2]
[333670926,1722335448008,-629.27289,0.00013686,2]
[333670927,1722335448018,-629.27289,0.00013686,2]
[333670928,1722335448028,-629.27289,0.00013686,2]
[333670929,1722335448038,-629.27289,0.00013686,2]
[333670930,1722335448049,-345.800562,0.00013686,2]
[333670931,1722335448060,-345.800562,0.00013686,2]
[333670932,1722335448071,-345.800562,0.00013686,2]
[333670933,1722335448081,-345.800562,0.00013686,2]
[333670934,1722335448091,-324.963365,0.00013686,2]
[333670935,1722335448101,-324.963365,0.00013686,2]
[333670936,1722335448113,-324.963365,0.00013686,2]
[333670937,1722335448125,-324.963365,0.00013686,2]
[333670938,1722335448137,-6813.78,0.00013686,2]
[333670939,1722335448147,-6813.78,0.00013686,2]
[333670940,1722335448157,-6813.78,0.00013686,2]
[333670941,1722335448168,-6813.78,0.00013686,2]
[333670942,1722335448178,-6813.78,0.00013686,2]
[333670943,1722335448188,-6813.78,0.00013686,2]
[333670944,1722335448198,-6813.78,0.00013686,2]
[333670945,1722335448208,-6813.78,0.00013686,2]
[333670946,1722335448218,-6813.78,0.00013686,2]
[333670947,1722335448228,-419.902854,0.00013686,2]
[333670948,1722335448238,-419.902854,0.00013686,2]
[333670949,1722335448249,-419.902854,0.00013686,2]
[333670950,1722335448260,-419.902854,0.00013686,2]
[333670951,1722335448270,-151.0,0.00013686,2]
[333670952,1722335448281,-151.0,0.00013686,2]
[333670953,1722335448290,-151.0,0.00013686,2]
[333670954,1722335448300,-151.0,0.00013686,2]
[333670955,1722335448310,-151.0,0.00013686,2]
[333670956,1722335448320,-151.0,0.00013686,2]
[333670957,1722335448330,-334.202041,0.00013686,2]
[333670958,1722335448340,-334.202041,0.00013686,2]
[333670959,1722335448350,-600.359707,0.00013686,2]
[333670960,1722335448360,-600.359707,0.00013686,2]
[333670961,1722335448370,-334.202041,0.00013686,2]
[333670962,1722335448380,-334.202041,0.00013686,2]
[333670963,1722335448390,-600.359707,0.00013686,2]
[333670964,1722335448402,-600.359707,0.00013686,2]
[333670965,1722335448412,-151.0,0.00013686,2]
[333670966,1722335448422,-151.0,0.00013686,2]
[333670967,1722335448434,-151.0,0.00013686,2]
[333670968,1722335448444,-151.0,0.00013686,2]
[333670969,1722335448453,-10031.62032152,0.00013686,2]
[333670970,1722335448467,-211.48476,0.00013686,2]
[333670971,1722335448477,-7967.31785098,0.00013687,2]
[333670972,1722335448488,-163782.87990123,0.00013687,2]
[333670973,1722335448499,-151.0,0.00013687,2]
[333670974,1722335448510,-151.0,0.00013687,2]
[333670975,1722335448520,-151.0,0.00013687,2]
[333670976,1722335448532,-151.0,0.00013687,2]
[333670977,1722335448542,-151.0,0.00013687,2]
[333670978,1722335448553,-151.0,0.00013687,2]
[333670979,1722335448564,-151.0,0.00013687,2]
[333670980,1722335448574,-151.0,0.00013687,2]
[333670981,1722335448584,-460.024485,0.00013687,2]
[333670982,1722335448595,-460.024485,0.00013687,2]
[333670983,1722335448609,-460.024485,0.00013687,2]
[333670984,1722335448619,-460.024485,0.00013687,2]
[333670985,1722335448629,-151.0,0.00013687,2]
[333670986,1722335448639,-151.0,0.00013687,2]
[333670987,1722335448650,-151.0,0.00013687,2]
[333670988,1722335448659,-151.0,0.00013687,2]
[333670989,1722335448669,-152.408321,0.00013687,2]
[333670990,1722335448678,-151.0,0.00013687,2]
[333670991,1722335448688,-151.0,0.00013687,2]
[333670992,1722335448698,-151.0,0.00013687,2]
[333670993,1722335448707,-151.0,0.00013687,2]
[333670994,1722335448717,-151.0,0.00013687,2]
[333670995,1722335448727,-151.0,0.00013687,2]
[333670996,1722335448736,-151.0,0.00013687,2]
[333670997,1722335448747,-151.0,0.00013687,2]
[333670998,1722335448757,-211.690158,0.00013687,2]
[333670999,1722335448767,-675.277986,0.00013687,2]
[333671000,1722335448777,-675.277986,0.00013687,2]
[333671001,1722335448786,-675.277986,0.00013687,2]
[333671002,1722335448795,-675.277986,0.00013687,2]
[333671003,1722335448805,-675.277986,0.00013687,2]
[333671004,1722335448814,-675.277986,0.00013687,2]
[333671005,1722335448825,-675.277986,0.00013687,2]
[333671006,1722335448835,-675.277986,0.00013687,2]
[333671007,1722335448848,-151.0,0.00013687,2]
[333671008,1722335448861,-151.0,0.00013687,2]
[333671009,1722335448870,-151.0,0.00013687,2]
[333671010,1722335448880,-151.0,0.00013687,2]
[333671011,1722335448890,-151.0,0.00013687,2]
[333671012,1722335448902,-151.0,0.00013687,2]
[333671013,1722335448913,-151.0,0.00013687,2]
[333671014,1722335448925,-151.0,0.00013687,2]
[333671015,1722335448936,-247.522058,0.00013687,2]
[333671016,1722335448946,-300.883116,0.00013687,2]
[333671017,1722335448957,-300.883116,0.00013687,2]
[333671018,1722335448967,-300.883116,0.00013687,2]
[333671019,1722335448977,-300.883116,0.00013687,2]
[333671020,1722335448986,-300.883116,0.00013687,2]
[333671021,1722335448995,-300.883116,0.00013687,2]
[333671022,1722335449004,-302.484213,0.00013687,2]
[333671023,1722335449023,-302.484213,0.00013687,2]
[333671024,1722335449035,-302.484213,0.00013687,2]
[333671025,1722335449046,-302.484213,0.00013687,2]
[333671026,1722335449056,-302.484213,0.00013687,2]
[333671027,1722335449067,-302.484213,0.00013687,2]
[333671028,1722335449077,-151.0,0.00013687,2]
[333671029,1722335449087,-151.389932,0.00013687,2]
[333671030,1722335449097,-182.850076,0.00013687,2]
[333671031,1722335449107,-151.0,0.00013687,2]
[333671032,1722335449117,-151.0,0.00013687,2]
[333671033,1722335449127,-182.850076,0.00013687,2]
[333671034,1722335449137,-182.850076,0.00013687,2]
[333671035,1722335449147,-151.0,0.00013687,2]
[333671036,1722335449160,-182.850076,0.00013687,2]
[333671037,1722335449170,-182.850076,0.00013687,2]
[333671038,1722335449180,-182.850076,0.00013687,2]
[333671039,1722335449190,-415.896844,0.00013687,2]
[333671040,1722335449200,-415.896844,0.00013687,2]
[333671041,1722335449211,-415.896844,0.00013687,2]
[333671042,1722335449220,-415.896844,0.00013687,2]
[333671043,1722335449231,-415.896844,0.00013687,2]
[333671044,1722335449242,-415.896844,0.00013687,2]
[333671045,1722335449252,-629.27289,0.00013687,2]
[333671046,1722335449261,-629.27289,0.00013687,2]
[333671047,1722335449272,-629.27289,0.00013687,2]
[333671048,1722335449282,-629.27289,0.00013687,2]
[333671049,1722335449293,-345.800562,0.00013687,2]
[333671050,1722335449304,-345.800562,0.00013687,2]
[333671051,1722335449314,-345.800562,0.00013687,2]
[333671052,1722335449325,-345.800562,0.00013687,2]
[333671053,1722335449335,-324.963365,0.00013687,2]
[333671054,1722335449346,-324.963365,0.00013687,2]
[333671055,1722335449357,-324.963365,0.00013687,2]
[333671056,1722335449367,-324.963365,0.00013687,2]
[333671057,1722335449378,-6813.78,0.00013687,2]
[333671058,1722335449388,-419.902854,0.00013687,2]
[333671059,1722335449400,-419.902854,0.00013687,2]
[333671060,1722335449410,-419.902854,0.00013687,2]
[333671061,1722335449421,-419.902854,0.00013687,2]
[333671062,1722335449431,-151.0,0.00013687,2]
[333671063,1722335449441,-151.0,0.00013687,2]
[333671064,1722335449452,-151.0,0.00013687,2]
[333671065,1722335449464,-284.262275,0.00013687,2]
[333671066,1722335449474,-151.0,0.00013687,2]
[333671067,1722335449484,-151.0,0.00013687,2]
[333671068,1722335449495,-334.202041,0.00013687,2]
[333671069,1722335449505,-334.202041,0.00013687,2]
[333671070,1722335449515,-600.359707,0.00013687,2]
[333671071,1722335449525,-600.359707,0.00013687,2]
[333671072,1722335449536,-334.202041,0.00013687,2]
[333671073,1722335449546,-334.202041,0.00013687,2]
[333671074,1722335449556,-600.359707,0.00013687,2]
[333671075,1722335449566,-600.359707,0.00013687,2]
[333671076,1722335449577,-152.204696,0.00013687,2]
[333671077,1722335449588,-204.919694,0.00013687,2]
[333671078,1722335449598,-833.14759052,0.00013688,2]
[333671079,1722335449608,-151.0,0.00013688,2]
[333671080,1722335449618,-151.0,0.00013688,2]
[333671081,1722335449629,-151.0,0.00013688,2]
[333671082,1722335449639,-151.0,0.00013688,2]
[333671083,1722335449649,-151.0,0.00013688,2]
[333671084,1722335449660,-151.0,0.00013688,2]
[333671085,1722335449670,-151.0,0.00013688,2]
[333671086,1722335449680,-151.0,0.00013688,2]
[333671087,1722335449690,-151.0,0.00013688,2]
[333671088,1722335449700,-214.43035,0.00013688,2]
[333671089,1722335449710,-214.43035,0.00013688,2]
[333671090,1722335449720,-214.43035,0.00013688,2]
[333671091,1722335449730,-214.43035,0.00013688,2]
[333671092,1722335449740,-214.43035,0.00013688,2]
[333671093,1722335449751,-214.43035,0.00013688,2]
[333671094,1722335449760,-151.0,0.00013688,2]